[Event "Titled Tuesday Blitz April 05 Late 2022"]
[White "Galego, Luis"]
[Black "Calderon, Zachary"]
[WhiteFideId "1900072"]
[BlackFideId "2076969"]
[WhiteElo "2528"]
[BlackElo "2299"]
[Result "1-0"]
[Round "02"]
[TimeControl "180+1"]
[Date "2022.04.06"]
[WhiteClock "0:00:19"]
[BlackClock "0:01:11"]

1. d4 {[%clk 0:02:34]}  d5 {[%clk 0:02:59]} 2. c4 {[%clk 0:02:34]}  dxc4 {[%clk 0:03:00]} 3. Nc3 {[%clk 0:02:34]}  e5 {[%clk 0:03:00]} 4. e3 {[%clk 0:02:29]}  Nf6 {[%clk 0:02:56]} 5. Bxc4 {[%clk 0:02:28]}  exd4 {[%clk 0:02:56]} 6. exd4 {[%clk 0:02:26]}  Be7 {[%clk 0:02:56]} 7. Nf3 {[%clk 0:02:22]}  O-O {[%clk 0:02:55]} 8. h3 {[%clk 0:02:22]}  c6 {[%clk 0:02:55]} 9. O-O {[%clk 0:02:18]}  Bf5 {[%clk 0:02:54]} 10. Re1 {[%clk 0:02:17]}  Nbd7 {[%clk 0:02:54]} 11. Bg5 {[%clk 0:02:00]}  Nb6 {[%clk 0:02:52]} 12. Bb3 {[%clk 0:01:58]}  h6 {[%clk 0:02:48]} 13. Bh4 {[%clk 0:01:51]}  Nfd5 {[%clk 0:02:40]} 14. Bxe7 {[%clk 0:01:26]}  Nxe7 {[%clk 0:02:41]} 15. Ne5 {[%clk 0:01:25]}  Ned5 {[%clk 0:02:37]} 16. Qf3 {[%clk 0:01:25]}  Qg5 {[%clk 0:02:08]} 17. Nxd5 {[%clk 0:01:21]}  Nxd5 {[%clk 0:02:08]} 18. Bxd5 {[%clk 0:01:11]}  cxd5 {[%clk 0:02:09]} 19. h4 {[%clk 0:01:11]}  Qf6 {[%clk 0:01:59]} 20. Rac1 {[%clk 0:00:58]}  Be4 {[%clk 0:01:57]} 21. Qxf6 {[%clk 0:00:57]}  gxf6 {[%clk 0:01:57]} 22. Nd7 {[%clk 0:00:56]}  Rfc8 {[%clk 0:01:42]} 23. Nxf6+ {[%clk 0:00:54]}  Kg7 {[%clk 0:01:42]} 24. Rxc8 {[%clk 0:00:51]}  Rxc8 {[%clk 0:01:41]} 25. Nxe4 {[%clk 0:00:52]}  dxe4 {[%clk 0:01:42]} 26. Rxe4 {[%clk 0:00:51]}  Rc1+ {[%clk 0:01:43]} 27. Kh2 {[%clk 0:00:52]}  Rc2 {[%clk 0:01:44]} 28. d5 {[%clk 0:00:48]}  Rd2 {[%clk 0:01:38]} 29. Re7 {[%clk 0:00:47]}  Rxb2 {[%clk 0:01:34]} 30. d6 {[%clk 0:00:46]}  Rd2 {[%clk 0:01:29]} 31. Rxb7 {[%clk 0:00:44]}  Rxd6 {[%clk 0:01:29]} 32. Rxa7 {[%clk 0:00:45]}  Rd2 {[%clk 0:01:29]} 33. Kg3 {[%clk 0:00:44]}  Kg6 {[%clk 0:01:29]} 34. f3 {[%clk 0:00:45]}  h5 {[%clk 0:01:28]} 35. Ra6+ {[%clk 0:00:44]}  f6 {[%clk 0:01:28]} 36. a4 {[%clk 0:00:43]}  Ra2 {[%clk 0:01:29]} 37. Ra8 {[%clk 0:00:42]}  Kf5 {[%clk 0:01:26]} 38. a5 {[%clk 0:00:42]}  Ra4 {[%clk 0:01:23]} 39. a6 {[%clk 0:00:41]}  Ra1 {[%clk 0:01:21]} 40. a7 {[%clk 0:00:38]}  Ra3 {[%clk 0:01:21]} 41. Kf2 {[%clk 0:00:34]}  Kf4 {[%clk 0:01:16]} 42. g3+ {[%clk 0:00:28]}  Kf5 {[%clk 0:01:16]} 43. Rh8 {[%clk 0:00:27]}  Rxa7 {[%clk 0:01:16]} 44. Rxh5+ {[%clk 0:00:28]}  Kg6 {[%clk 0:01:17]} 45. Rd5 {[%clk 0:00:27]}  Ra2+ {[%clk 0:01:17]} 46. Ke3 {[%clk 0:00:28]}  Ra3+ {[%clk 0:01:18]} 47. Rd3 {[%clk 0:00:28]}  Ra1 {[%clk 0:01:18]} 48. g4 {[%clk 0:00:28]}  Re1+ {[%clk 0:01:16]} 49. Kf4 {[%clk 0:00:28]}  Rh1 {[%clk 0:01:16]} 50. h5+ {[%clk 0:00:29]}  Kh6 {[%clk 0:01:16]} 51. Kf5 {[%clk 0:00:27]}  Ra1 {[%clk 0:01:09]} 52. Kxf6 {[%clk 0:00:27]}  Ra6+ {[%clk 0:01:09]} 53. Ke5 {[%clk 0:00:27]}  Ra5+ {[%clk 0:01:10]} 54. Rd5 {[%clk 0:00:27]}  Ra3 {[%clk 0:01:10]} 55. f4 {[%clk 0:00:27]}  Kg7 {[%clk 0:01:10]} 56. Rd7+ {[%clk 0:00:26]}  Kh8 {[%clk 0:01:11]} 57. g5 {[%clk 0:00:25]}  Ra5+ {[%clk 0:01:11]} 58. Rd5 {[%clk 0:00:26]}  Ra7 {[%clk 0:01:10]} 59. f5 {[%clk 0:00:26]}  Ra8 {[%clk 0:01:09]} 60. f6 {[%clk 0:00:26]}  Re8+ {[%clk 0:01:09]} 61. Kf5 {[%clk 0:00:26]}  Rf8 {[%clk 0:01:09]} 62. g6 {[%clk 0:00:26]}  Kg8 {[%clk 0:01:03]} 63. Kg5 {[%clk 0:00:25]}  Kh8 {[%clk 0:01:02]} 64. g7+ {[%clk 0:00:23]}  Kh7 {[%clk 0:01:03]} 65. gxf8=N+ {[%clk 0:00:21]}  Kg8 {[%clk 0:01:03]} 66. Ng6 {[%clk 0:00:21]}  Kf7 {[%clk 0:01:03]} 67. Rd7+ {[%clk 0:00:19]}  Ke6 {[%clk 0:01:04]} 68. f7 {[%clk 0:00:20]}  Kxd7 {[%clk 0:01:03]} 69. f8=Q {[%clk 0:00:20]}  Ke6 {[%clk 0:01:04]} 70. h6 {[%clk 0:00:20]}  Kd7 {[%clk 0:01:04]} 71. h7 {[%clk 0:00:21]}  Ke6 {[%clk 0:01:05]} 72. h8=Q {[%clk 0:00:21]}  Kd7 {[%clk 0:01:06]} 73. Qhg7+ {[%clk 0:00:21]}  Ke6 {[%clk 0:01:07]} 74. Qge7+ {[%clk 0:00:20]}  Kd5 {[%clk 0:01:08]} 75. Qfd8+ {[%clk 0:00:19]}  Kc6 {[%clk 0:01:09]} 76. Qec7+ {[%clk 0:00:20]}  Kb5 {[%clk 0:01:10]} 77. Qdb8+ {[%clk 0:00:20]}  Ka6 {[%clk 0:01:11]} 78. Qca7# {[%clk 0:00:19]} 1-0


[Site "https://www.chess.com"]

[Event "Titled Tuesday Blitz April 05 Late 2022"]
[White "Hakobyan, Aram"]
[Black "Fishbein, Alexander"]
[WhiteFideId "13306677"]
[BlackFideId "2000377"]
[WhiteElo "2557"]
[BlackElo "2442"]
[Result "0-1"]
[Round "02"]
[TimeControl "180+1"]
[Date "2022.04.05"]
[WhiteClock "0:00:04"]
[BlackClock "0:00:38"]

1. d4 {[%clk 0:03:00]}  Nf6 {[%clk 0:02:58]} 2. a3 {[%clk 0:02:59]}  g6 {[%clk 0:02:43]} 3. Nc3 {[%clk 0:02:59]}  d5 {[%clk 0:02:41]} 4. Bf4 {[%clk 0:02:59]}  Bg7 {[%clk 0:02:40]} 5. Nb5 {[%clk 0:03:00]}  Na6 {[%clk 0:02:40]} 6. e3 {[%clk 0:03:00]}  O-O {[%clk 0:02:40]} 7. h3 {[%clk 0:03:01]}  Bd7 {[%clk 0:02:34]} 8. Nf3 {[%clk 0:02:58]}  e6 {[%clk 0:02:25]} 9. Be2 {[%clk 0:02:56]}  Bxb5 {[%clk 0:02:25]} 10. Bxb5 {[%clk 0:02:56]}  c5 {[%clk 0:02:20]} 11. O-O {[%clk 0:02:52]}  c4 {[%clk 0:02:15]} 12. Bxa6 {[%clk 0:02:26]}  bxa6 {[%clk 0:02:15]} 13. b3 {[%clk 0:02:24]}  cxb3 {[%clk 0:02:10]} 14. cxb3 {[%clk 0:02:25]}  Ne4 {[%clk 0:02:10]} 15. Qd3 {[%clk 0:02:18]}  Qb6 {[%clk 0:02:09]} 16. Rfc1 {[%clk 0:02:17]}  Rfc8 {[%clk 0:02:09]} 17. Ne5 {[%clk 0:02:09]}  Bxe5 {[%clk 0:02:00]} 18. Bxe5 {[%clk 0:02:08]}  Qb5 {[%clk 0:02:01]} 19. Qxb5 {[%clk 0:01:41]}  axb5 {[%clk 0:02:01]} 20. b4 {[%clk 0:00:28]}  Rc4 {[%clk 0:01:53]} 21. Rxc4 {[%clk 0:00:26]}  bxc4 {[%clk 0:01:49]} 22. a4 {[%clk 0:00:27]}  f6 {[%clk 0:01:32]} 23. Bh2 {[%clk 0:00:20]}  Rc8 {[%clk 0:01:26]} 24. f3 {[%clk 0:00:20]}  Nd2 {[%clk 0:01:25]} 25. Rc1 {[%clk 0:00:16]}  c3 {[%clk 0:01:24]} 26. Rc2 {[%clk 0:00:16]}  Rc4 {[%clk 0:01:20]} 27. b5 {[%clk 0:00:14]}  Nb1 {[%clk 0:01:18]} 28. a5 {[%clk 0:00:14]}  Na3 {[%clk 0:01:16]} 29. Rc1 {[%clk 0:00:15]}  c2 {[%clk 0:01:15]} 30. b6 {[%clk 0:00:13]}  axb6 {[%clk 0:01:14]} 31. axb6 {[%clk 0:00:13]}  e5 {[%clk 0:00:52]} 32. dxe5 {[%clk 0:00:09]}  Rb4 {[%clk 0:00:51]} 33. e6 {[%clk 0:00:06]}  Rb1 {[%clk 0:00:41]} 34. b7 {[%clk 0:00:03]}  Rxc1+ {[%clk 0:00:40]} 35. Kf2 {[%clk 0:00:04]}  Rb1 {[%clk 0:00:38]} 0-1


[Site "https://www.chess.com"]

[Event "Titled Tuesday Blitz April 05 Late 2022"]
[White "Hambleton, Aman"]
[Black "Bellissimo, Joseph F."]
[WhiteFideId "2606577"]
[BlackFideId "2609843"]
[WhiteElo "2803"]
[BlackElo "2549"]
[Result "1-0"]
[Round "02"]
[TimeControl "180+1"]
[Date "2022.04.06"]
[WhiteClock "0:00:07"]
[BlackClock "0:00:11"]

1. d4 {[%clk 0:02:55]}  Nf6 {[%clk 0:02:56]} 2. c4 {[%clk 0:02:50]}  e6 {[%clk 0:02:56]} 3. Nc3 {[%clk 0:02:50]}  Bb4 {[%clk 0:02:56]} 4. Qc2 {[%clk 0:02:50]}  O-O {[%clk 0:02:56]} 5. Nf3 {[%clk 0:02:43]}  d5 {[%clk 0:02:55]} 6. cxd5 {[%clk 0:02:26]}  exd5 {[%clk 0:02:54]} 7. Bg5 {[%clk 0:02:13]}  c6 {[%clk 0:02:53]} 8. e3 {[%clk 0:02:10]}  Na6 {[%clk 0:02:47]} 9. Bd3 {[%clk 0:01:51]}  h6 {[%clk 0:02:47]} 10. Bh4 {[%clk 0:01:51]}  Be7 {[%clk 0:02:46]} 11. a3 {[%clk 0:01:50]}  Nc7 {[%clk 0:02:47]} 12. O-O {[%clk 0:01:49]}  Ne6 {[%clk 0:02:47]} 13. Ne5 {[%clk 0:01:27]}  c5 {[%clk 0:02:46]} 14. dxc5 {[%clk 0:01:18]}  Nxc5 {[%clk 0:02:23]} 15. Bf5 {[%clk 0:01:07]}  Be6 {[%clk 0:02:21]} 16. Rad1 {[%clk 0:01:03]}  Rc8 {[%clk 0:02:16]} 17. Bxe6 {[%clk 0:01:01]}  Nxe6 {[%clk 0:02:06]} 18. Qf5 {[%clk 0:00:43]}  Qd6 {[%clk 0:01:14]} 19. Bxf6 {[%clk 0:00:32]}  Bxf6 {[%clk 0:01:12]} 20. Rxd5 {[%clk 0:00:32]}  Bxe5 {[%clk 0:00:43]} 21. Rxd6 {[%clk 0:00:29]}  Bxd6 {[%clk 0:00:44]} 22. Qd5 {[%clk 0:00:23]}  Rfd8 {[%clk 0:00:42]} 23. Qxb7 {[%clk 0:00:23]}  Rb8 {[%clk 0:00:42]} 24. Qxa7 {[%clk 0:00:21]}  Rxb2 {[%clk 0:00:42]} 25. Ne4 {[%clk 0:00:20]}  Bf8 {[%clk 0:00:37]} 26. h4 {[%clk 0:00:16]}  Ra2 {[%clk 0:00:37]} 27. a4 {[%clk 0:00:17]}  Rd3 {[%clk 0:00:32]} 28. Rc1 {[%clk 0:00:11]}  Rda3 {[%clk 0:00:31]} 29. Rc4 {[%clk 0:00:10]}  Ra1+ {[%clk 0:00:18]} 30. Kh2 {[%clk 0:00:10]}  Rd1 {[%clk 0:00:17]} 31. g4 {[%clk 0:00:08]}  Raa1 {[%clk 0:00:17]} 32. Kg2 {[%clk 0:00:05]}  Rg1+ {[%clk 0:00:16]} 33. Kf3 {[%clk 0:00:05]}  h5 {[%clk 0:00:13]} 34. gxh5 {[%clk 0:00:02]}  Rh1 {[%clk 0:00:14]} 35. Ng3 {[%clk 0:00:02]}  Rhd1 {[%clk 0:00:12]} 36. Rc8 {[%clk 0:00:02]}  Rd8 {[%clk 0:00:10]} 37. Rxd8 {[%clk 0:00:02]}  Nxd8 {[%clk 0:00:11]} 38. Qd7 {[%clk 0:00:03]}  Ne6 {[%clk 0:00:12]} 39. h6 {[%clk 0:00:03]}  gxh6 {[%clk 0:00:11]} 40. Ne4 {[%clk 0:00:03]}  Kg7 {[%clk 0:00:10]} 41. Qd5 {[%clk 0:00:03]}  Ra2 {[%clk 0:00:09]} 42. Qxa2 {[%clk 0:00:03]}  f5 {[%clk 0:00:08]} 43. Nd2 {[%clk 0:00:02]}  Kf6 {[%clk 0:00:08]} 44. Qa1+ {[%clk 0:00:03]}  Kf7 {[%clk 0:00:07]} 45. Ke2 {[%clk 0:00:04]}  Bg7 {[%clk 0:00:08]} 46. Qb1 {[%clk 0:00:04]}  Be5 {[%clk 0:00:08]} 47. Qb7+ {[%clk 0:00:05]}  Kf6 {[%clk 0:00:09]} 48. a5 {[%clk 0:00:05]}  Nc5 {[%clk 0:00:10]} 49. Qb6+ {[%clk 0:00:05]}  Ne6 {[%clk 0:00:11]} 50. a6 {[%clk 0:00:06]}  Bc7 {[%clk 0:00:11]} 51. Qb7 {[%clk 0:00:06]}  Nc5 {[%clk 0:00:10]} 52. Qxc7 {[%clk 0:00:05]}  Nxa6 {[%clk 0:00:11]} 53. Qb6+ {[%clk 0:00:05]}  Kg7 {[%clk 0:00:11]} 54. Qxa6 {[%clk 0:00:06]}  f4 {[%clk 0:00:11]} 55. Kf3 {[%clk 0:00:07]} 1-0


[Site "https://www.chess.com"]

[Event "Titled Tuesday Blitz April 05 Late 2022"]
[White "Harshavardhan G B"]
[Black "Dreev, Aleksey"]
[WhiteFideId "25059009"]
[BlackFideId "4100107"]
[WhiteElo "1831"]
[BlackElo "2625"]
[Result "0-1"]
[Round "02"]
[TimeControl "180+1"]
[Date "2022.04.05"]
[WhiteClock "0:00:17"]
[BlackClock "0:00:07"]

1. d4 {[%clk 0:03:00]}  Nf6 {[%clk 0:02:58]} 2. c4 {[%clk 0:02:59]}  e6 {[%clk 0:02:58]} 3. Nc3 {[%clk 0:02:58]}  d5 {[%clk 0:02:59]} 4. Nf3 {[%clk 0:02:56]}  Nbd7 {[%clk 0:02:56]} 5. Bf4 {[%clk 0:02:53]}  dxc4 {[%clk 0:02:54]} 6. e3 {[%clk 0:02:50]}  Bd6 {[%clk 0:02:52]} 7. Bxc4 {[%clk 0:02:36]}  Bxf4 {[%clk 0:02:51]} 8. exf4 {[%clk 0:02:37]}  O-O {[%clk 0:02:49]} 9. O-O {[%clk 0:02:37]}  b6 {[%clk 0:02:44]} 10. Ne5 {[%clk 0:02:34]}  Bb7 {[%clk 0:02:44]} 11. Re1 {[%clk 0:02:31]}  c5 {[%clk 0:02:34]} 12. dxc5 {[%clk 0:02:26]}  Nxc5 {[%clk 0:02:34]} 13. Qc2 {[%clk 0:02:25]}  Rc8 {[%clk 0:02:27]} 14. f5 {[%clk 0:02:21]}  Nd5 {[%clk 0:01:44]} 15. Rad1 {[%clk 0:01:56]}  Nd7 {[%clk 0:01:20]} 16. Nxd7 {[%clk 0:01:52]}  Qxd7 {[%clk 0:01:18]} 17. fxe6 {[%clk 0:01:52]}  fxe6 {[%clk 0:01:18]} 18. Qe2 {[%clk 0:01:52]}  Qf7 {[%clk 0:01:12]} 19. Nxd5 {[%clk 0:01:48]}  Bxd5 {[%clk 0:01:10]} 20. Bxd5 {[%clk 0:01:45]}  exd5 {[%clk 0:01:11]} 21. Qd2 {[%clk 0:01:41]}  d4 {[%clk 0:01:03]} 22. Qxd4 {[%clk 0:01:39]}  Qxa2 {[%clk 0:00:59]} 23. Re7 {[%clk 0:00:58]}  Rf7 {[%clk 0:00:58]} 24. Qe5 {[%clk 0:00:49]}  Rxe7 {[%clk 0:00:49]} 25. Qxe7 {[%clk 0:00:50]}  Qf7 {[%clk 0:00:48]} 26. Qe3 {[%clk 0:00:38]}  Re8 {[%clk 0:00:45]} 27. Qd4 {[%clk 0:00:36]}  h6 {[%clk 0:00:33]} 28. b4 {[%clk 0:00:36]}  Qg6 {[%clk 0:00:26]} 29. h4 {[%clk 0:00:29]}  Kh7 {[%clk 0:00:21]} 30. b5 {[%clk 0:00:23]}  Re4 {[%clk 0:00:20]} 31. Qd8 {[%clk 0:00:20]}  Rg4 {[%clk 0:00:17]} 32. g3 {[%clk 0:00:20]}  Re4 {[%clk 0:00:11]} 33. Qd5 {[%clk 0:00:19]}  h5 {[%clk 0:00:08]} 34. Rd3 {[%clk 0:00:19]}  Rxh4 {[%clk 0:00:08]} 35. Rf3 {[%clk 0:00:17]}  Qb1+ {[%clk 0:00:07]} 0-1


[Site "https://www.chess.com"]

[Event "Titled Tuesday Blitz April 05 Late 2022"]
[White "He, Anthony"]
[Black "Wieczorek, Oskar"]
[WhiteFideId "2088215"]
[BlackFideId "1133950"]
[WhiteElo "2415"]
[BlackElo "2319"]
[Result "1-0"]
[Round "02"]
[TimeControl "180+1"]
[Date "2022.04.05"]
[WhiteClock "0:02:11"]
[BlackClock "0:01:27"]

1. d4 {[%clk 0:03:00]}  g6 {[%clk 0:02:57]} 2. c4 {[%clk 0:02:59]}  Bg7 {[%clk 0:02:57]} 3. Nc3 {[%clk 0:03:00]}  b6 {[%clk 0:02:57]} 4. e4 {[%clk 0:02:59]}  Bb7 {[%clk 0:02:57]} 5. Be3 {[%clk 0:02:59]}  e6 {[%clk 0:02:58]} 6. Qd2 {[%clk 0:02:59]}  d6 {[%clk 0:02:58]} 7. Bd3 {[%clk 0:02:58]}  Nd7 {[%clk 0:02:58]} 8. Nge2 {[%clk 0:02:58]}  h6 {[%clk 0:02:58]} 9. h4 {[%clk 0:02:58]}  Ne7 {[%clk 0:02:58]} 10. f3 {[%clk 0:02:58]}  a6 {[%clk 0:02:52]} 11. g4 {[%clk 0:02:49]}  h5 {[%clk 0:02:49]} 12. gxh5 {[%clk 0:02:48]}  Rxh5 {[%clk 0:02:39]} 13. O-O-O {[%clk 0:02:43]}  Nf6 {[%clk 0:02:33]} 14. Bg5 {[%clk 0:02:40]}  e5 {[%clk 0:02:27]} 15. d5 {[%clk 0:02:32]}  c6 {[%clk 0:02:12]} 16. Ng3 {[%clk 0:02:30]}  Rh8 {[%clk 0:02:12]} 17. Kb1 {[%clk 0:02:27]}  cxd5 {[%clk 0:02:11]} 18. cxd5 {[%clk 0:02:26]}  b5 {[%clk 0:02:10]} 19. Rc1 {[%clk 0:02:24]}  Qd7 {[%clk 0:02:06]} 20. Qe2 {[%clk 0:02:16]}  Nh5 {[%clk 0:01:59]} 21. Nxh5 {[%clk 0:02:14]}  Rxh5 {[%clk 0:02:00]} 22. Nxb5 {[%clk 0:02:14]}  Rc8 {[%clk 0:01:28]} 23. Rxc8+ {[%clk 0:02:12]}  Nxc8 {[%clk 0:01:27]} 24. Rc1 {[%clk 0:02:11]} 1-0


[Site "https://www.chess.com"]

[Event "Titled Tuesday Blitz April 05 Late 2022"]
[White "Hernandez Bermudez, Ulises Eduardo"]
[Black "Suarez Uriel, Adrian"]
[WhiteFideId "3902510"]
[BlackFideId "22230874"]
[WhiteElo "2056"]
[BlackElo "2316"]
[Result "0-1"]
[Round "02"]
[TimeControl "180+1"]
[Date "2022.04.06"]
[WhiteClock "0:00:11"]
[BlackClock "0:01:26"]

1. e4 {[%clk 0:02:59]}  c5 {[%clk 0:02:57]} 2. Nf3 {[%clk 0:02:58]}  Nc6 {[%clk 0:02:58]} 3. d4 {[%clk 0:02:57]}  cxd4 {[%clk 0:02:59]} 4. Nxd4 {[%clk 0:02:57]}  g6 {[%clk 0:03:00]} 5. c4 {[%clk 0:02:55]}  Bg7 {[%clk 0:03:00]} 6. Be3 {[%clk 0:02:54]}  d6 {[%clk 0:02:58]} 7. Nc3 {[%clk 0:02:52]}  Nh6 {[%clk 0:02:59]} 8. f3 {[%clk 0:02:49]}  f5 {[%clk 0:02:55]} 9. Be2 {[%clk 0:02:37]}  O-O {[%clk 0:02:55]} 10. O-O {[%clk 0:02:35]}  fxe4 {[%clk 0:02:52]} 11. Nxe4 {[%clk 0:02:24]}  Nf5 {[%clk 0:02:52]} 12. Nxf5 {[%clk 0:02:13]}  Bxf5 {[%clk 0:02:52]} 13. Qd2 {[%clk 0:02:09]}  Rc8 {[%clk 0:02:42]} 14. Rac1 {[%clk 0:02:06]}  Bxe4 {[%clk 0:02:34]} 15. fxe4 {[%clk 0:02:05]}  Qd7 {[%clk 0:02:28]} 16. c5 {[%clk 0:02:01]}  Kh8 {[%clk 0:02:24]} 17. cxd6 {[%clk 0:01:45]}  exd6 {[%clk 0:02:22]} 18. Rcd1 {[%clk 0:01:43]}  Be5 {[%clk 0:02:21]} 19. Bf4 {[%clk 0:01:22]}  Qe7 {[%clk 0:02:18]} 20. Bxe5+ {[%clk 0:01:19]}  dxe5 {[%clk 0:02:17]} 21. Qd7 {[%clk 0:01:14]}  Rxf1+ {[%clk 0:02:12]} 22. Bxf1 {[%clk 0:01:11]}  Qc5+ {[%clk 0:02:12]} 23. Kh1 {[%clk 0:01:07]}  Rd8 {[%clk 0:02:12]} 24. Qg4 {[%clk 0:01:06]}  Rxd1 {[%clk 0:02:12]} 25. Qxd1 {[%clk 0:01:07]}  Nd4 {[%clk 0:02:12]} 26. Bd3 {[%clk 0:01:03]}  Kg7 {[%clk 0:02:10]} 27. h3 {[%clk 0:01:02]}  h5 {[%clk 0:02:09]} 28. Qa4 {[%clk 0:00:56]}  b5 {[%clk 0:02:07]} 29. Qd1 {[%clk 0:00:45]}  b4 {[%clk 0:02:06]} 30. Kh2 {[%clk 0:00:37]}  a5 {[%clk 0:02:05]} 31. Qf1 {[%clk 0:00:33]}  Ne6 {[%clk 0:02:01]} 32. Bc4 {[%clk 0:00:30]}  Nf4 {[%clk 0:02:01]} 33. Bb3 {[%clk 0:00:24]}  h4 {[%clk 0:01:55]} 34. Qe1 {[%clk 0:00:21]}  Qe7 {[%clk 0:01:47]} 35. Qf2 {[%clk 0:00:20]}  Nd3 {[%clk 0:01:35]} 36. Qe2 {[%clk 0:00:16]}  Qd8 {[%clk 0:01:32]} 37. Bd5 {[%clk 0:00:15]}  Nf4 {[%clk 0:01:32]} 38. Qc4 {[%clk 0:00:15]}  Qg5 {[%clk 0:01:29]} 39. Qc2 {[%clk 0:00:13]}  Qg3+ {[%clk 0:01:29]} 40. Kh1 {[%clk 0:00:13]}  Qe1+ {[%clk 0:01:26]} 41. Kh2 {[%clk 0:00:12]}  Ne2 {[%clk 0:01:27]} 42. g4 {[%clk 0:00:11]}  Qg1# {[%clk 0:01:26]} 0-1


[Site "https://www.chess.com"]

[Event "Titled Tuesday Blitz April 05 Late 2022"]
[White "Herrera Reyes, Jose Antonio"]
[Black "Shimanov, Aleksandr"]
[WhiteFideId "2274914"]
[BlackFideId "4198603"]
[WhiteElo "2361"]
[BlackElo "2636"]
[Result "0-1"]
[Round "02"]
[TimeControl "180+1"]
[Date "2022.04.05"]
[WhiteClock "0:00:22"]
[BlackClock "0:00:10"]

1. Nf3 {[%clk 0:03:00]}  d5 {[%clk 0:02:57]} 2. g3 {[%clk 0:03:00]}  Bg4 {[%clk 0:02:56]} 3. Bg2 {[%clk 0:03:00]}  Nd7 {[%clk 0:02:56]} 4. O-O {[%clk 0:03:00]}  c6 {[%clk 0:02:53]} 5. d3 {[%clk 0:03:00]}  e5 {[%clk 0:02:51]} 6. c3 {[%clk 0:03:00]}  Ngf6 {[%clk 0:02:45]} 7. Qb3 {[%clk 0:02:59]}  Qc7 {[%clk 0:02:31]} 8. c4 {[%clk 0:02:58]}  d4 {[%clk 0:02:20]} 9. e3 {[%clk 0:02:52]}  dxe3 {[%clk 0:02:18]} 10. Bxe3 {[%clk 0:02:51]}  Bc5 {[%clk 0:02:16]} 11. Bxc5 {[%clk 0:02:46]}  Nxc5 {[%clk 0:02:17]} 12. Qa3 {[%clk 0:02:47]}  Bxf3 {[%clk 0:02:14]} 13. Qxc5 {[%clk 0:02:41]}  Bxg2 {[%clk 0:02:03]} 14. Kxg2 {[%clk 0:02:42]}  Nd7 {[%clk 0:01:56]} 15. Qa3 {[%clk 0:02:40]}  c5 {[%clk 0:01:55]} 16. Nc3 {[%clk 0:02:40]}  Qc6+ {[%clk 0:01:52]} 17. Kg1 {[%clk 0:02:35]}  O-O {[%clk 0:01:52]} 18. Nd5 {[%clk 0:02:34]}  Rfe8 {[%clk 0:01:51]} 19. f4 {[%clk 0:02:32]}  exf4 {[%clk 0:01:43]} 20. Rxf4 {[%clk 0:02:31]}  Nb6 {[%clk 0:01:41]} 21. Nc3 {[%clk 0:02:08]}  Qd6 {[%clk 0:01:21]} 22. Nb5 {[%clk 0:02:00]}  Qe5 {[%clk 0:01:19]} 23. Raf1 {[%clk 0:01:56]}  f6 {[%clk 0:01:16]} 24. Qc3 {[%clk 0:01:56]}  Qxc3 {[%clk 0:01:07]} 25. bxc3 {[%clk 0:01:57]}  Red8 {[%clk 0:01:01]} 26. R4f3 {[%clk 0:01:53]}  Rd7 {[%clk 0:01:00]} 27. Rb1 {[%clk 0:01:50]}  Na4 {[%clk 0:00:54]} 28. d4 {[%clk 0:01:16]}  a6 {[%clk 0:00:50]} 29. Na3 {[%clk 0:01:16]}  Re8 {[%clk 0:00:45]} 30. d5 {[%clk 0:01:14]}  Re2 {[%clk 0:00:43]} 31. Rf2 {[%clk 0:01:09]}  Rxf2 {[%clk 0:00:41]} 32. Kxf2 {[%clk 0:01:10]}  Nxc3 {[%clk 0:00:42]} 33. Re1 {[%clk 0:01:03]}  Kf7 {[%clk 0:00:39]} 34. Nc2 {[%clk 0:01:02]}  Nxa2 {[%clk 0:00:38]} 35. Ne3 {[%clk 0:01:02]}  Nb4 {[%clk 0:00:37]} 36. Ke2 {[%clk 0:00:58]}  b5 {[%clk 0:00:36]} 37. Rd1 {[%clk 0:00:43]}  bxc4 {[%clk 0:00:34]} 38. d6 {[%clk 0:00:43]}  c3 {[%clk 0:00:33]} 39. Nc4 {[%clk 0:00:41]}  c2 {[%clk 0:00:29]} 40. Ra1 {[%clk 0:00:41]}  Ke6 {[%clk 0:00:27]} 41. Kd2 {[%clk 0:00:41]}  Rb7 {[%clk 0:00:23]} 42. Kc3 {[%clk 0:00:40]}  Kd5 {[%clk 0:00:10]} 43. h4 {[%clk 0:00:37]}  Rb8 {[%clk 0:00:07]} 44. h5 {[%clk 0:00:23]}  c1=Q+ {[%clk 0:00:07]} 45. Rxc1 {[%clk 0:00:20]}  Na2+ {[%clk 0:00:08]} 46. Kd2 {[%clk 0:00:19]}  Nxc1 {[%clk 0:00:09]} 47. Ne3+ {[%clk 0:00:20]}  Kxd6 {[%clk 0:00:09]} 48. Kxc1 {[%clk 0:00:20]}  Ke5 {[%clk 0:00:09]} 49. Kd2 {[%clk 0:00:20]}  Rd8+ {[%clk 0:00:09]} 50. Ke2 {[%clk 0:00:21]}  Kd4 {[%clk 0:00:08]} 51. Nf5+ {[%clk 0:00:21]}  Kc3 {[%clk 0:00:09]} 52. Nxg7 {[%clk 0:00:22]}  a5 {[%clk 0:00:09]} 53. Ne6 {[%clk 0:00:22]}  Re8 {[%clk 0:00:10]} 0-1


[Site "https://www.chess.com"]

[Event "Titled Tuesday Blitz April 05 Late 2022"]
[White "Hess, Robert"]
[Black "Vusatiuk, Vladimir"]
[WhiteFideId "2022036"]
[BlackFideId "14118610"]
[WhiteElo "2557"]
[BlackElo "2157"]
[Result "1-0"]
[Round "02"]
[TimeControl "180+1"]
[Date "2022.04.05"]
[WhiteClock "0:00:13"]
[BlackClock "0:00:03"]

1. b3 {[%clk 0:03:00]}  a5 {[%clk 0:02:46]} 2. c4 {[%clk 0:03:00]}  e6 {[%clk 0:02:39]} 3. Bb2 {[%clk 0:03:00]}  Nf6 {[%clk 0:02:37]} 4. Nf3 {[%clk 0:03:00]}  a4 {[%clk 0:02:38]} 5. bxa4 {[%clk 0:03:00]}  Na6 {[%clk 0:02:33]} 6. Nc3 {[%clk 0:02:59]}  d5 {[%clk 0:02:17]} 7. e3 {[%clk 0:02:48]}  Be7 {[%clk 0:02:04]} 8. d4 {[%clk 0:02:40]}  O-O {[%clk 0:01:48]} 9. Bd3 {[%clk 0:02:40]}  c5 {[%clk 0:01:45]} 10. cxd5 {[%clk 0:02:31]}  Nxd5 {[%clk 0:01:32]} 11. Nxd5 {[%clk 0:02:20]}  Qxd5 {[%clk 0:01:23]} 12. O-O {[%clk 0:02:20]}  Nb4 {[%clk 0:01:16]} 13. Bb5 {[%clk 0:02:18]}  Rd8 {[%clk 0:00:48]} 14. Qb3 {[%clk 0:02:07]}  b6 {[%clk 0:00:40]} 15. dxc5 {[%clk 0:01:55]}  Qxc5 {[%clk 0:00:33]} 16. Bd4 {[%clk 0:01:21]}  Qh5 {[%clk 0:00:33]} 17. Bxb6 {[%clk 0:01:15]}  Bb7 {[%clk 0:00:22]} 18. e4 {[%clk 0:01:03]}  Rdc8 {[%clk 0:00:13]} 19. Nd2 {[%clk 0:00:41]}  Nc6 {[%clk 0:00:11]} 20. Rac1 {[%clk 0:00:34]}  Ne5 {[%clk 0:00:12]} 21. Qg3 {[%clk 0:00:31]}  Bd6 {[%clk 0:00:11]} 22. f4 {[%clk 0:00:30]}  Nc6 {[%clk 0:00:08]} 23. e5 {[%clk 0:00:22]}  Ba3 {[%clk 0:00:08]} 24. Qxa3 {[%clk 0:00:21]}  Ne7 {[%clk 0:00:05]} 25. Qxe7 {[%clk 0:00:16]}  Rxc1 {[%clk 0:00:01]} 26. Rxc1 {[%clk 0:00:16]}  Qg6 {[%clk 0:00:02]} 27. Qxb7 {[%clk 0:00:14]}  Rf8 {[%clk 0:00:03]} 28. Rc8 {[%clk 0:00:13]} 1-0


[Site "https://www.chess.com"]